[Event "NOR-ch Clubs 2017"]
[Site "Kristiansund"]
[Date "2017.10.22"]
[Round "6"]
[White "Royset, Pal"]
[Black "Wetle Hoem, Tor"]
[Result "1-0"]
[ECO "A48"]
[WhiteElo "2234"]
[BlackElo "1965"]
[Annotator "NA"]
[PlyCount "57"]
[EventDate "2017.??.??"]
[EventType "team-tourn"]
[EventCountry "NOR"]
[SourceTitle "playchess.com"]
[Source "ChessBase"]
[SourceQuality "1"]
[TimeControl "40/5400:1800"]

1. d4 {[%emt 0:00:24]} Nf6 {[%emt 0:00:27]} 2. Nf3 {[%emt 0:00:42]} g6 {[%emt 0:00:28]} 3. c4 {[%emt 0:01:24]} Bg7 {[%emt 0:00:08]} 4. Nc3 {[%emt 0:00:07]} d5 {[%emt 0:00:04]} 5. cxd5 {[%emt 0:00:52]} Nxd5 {[%emt 0:00:14]} 6. Na4 {[%emt 0:01:42]} Bg4 {[%emt 0:09:19]} 7. e4 {[%emt 0:08:32]} Bxf3 {[%emt 0:01:19]} 8. gxf3 {[%emt 0:02:59]} Nb4 {[%emt 0:03:13]} 9. d5 {[%emt 0:05:33]} c6 {[%emt 0:10:17]} 10. Qb3 {[%emt 0:01:42]} b5 {[%emt 0:11:29]} 11. Qxb4 {[%emt 0:08:18]} bxa4 {[%emt 0:04:58]} 12. Qxa4 {[%emt 0:09:40]} O-O {[%emt 0:02:24]} 13. Bc4 {[%emt 0:01:57]} Qd7 {[%emt 0:01:00]} 14. Be3 {[%emt 0:04:58]} Bxb2 {[%emt 0:02:12]} 15. Rb1 {[%emt 0:00:41]} Bc3+ {[%emt 0:01:15]} 16. Ke2 {[%emt 0:00:05]} cxd5 {[%emt 0:04:17]} 17. Qxd7 {[%emt 0:00:12]} Nxd7 {[%emt 0:00:10]} 18. Bxd5 {[%emt 0:00:16]} Rac8 {[%emt 0:01:43]} 19. Bxa7 {[%emt 0:01:53]} e6 {[%emt 0:01:42]} 20. Bb7 {[%emt 0:05:30]} Rc7 {[%emt 0:01:19]} 21. Rhc1 {[%emt 0:01:34]} Be5 {[%emt 0:04:03]} 22. h3 {[%emt 0:02:50]} Kg7 {[%emt 0:04:12]} 23. a4 {[%emt 0:00:49]} f5 {[%emt 0:00:35]} 24. a5 {[%emt 0:00:51]} fxe4 {[%emt 0:00:33]} 25. fxe4 {[%emt 0:00:36]} Rf4 {[%emt 0:02:03]} 26. a6 {[%emt 0:02:13]} Rxe4+ {[%emt 0:00:29]} 27. Bxe4 {[%emt 0:01:03]} Rxa7 {[%emt 0:00:04]} 28. Rb7 {[%emt 0:00:16]} Rxb7 {[%emt 0:01:03]} 29. Bxb7 {[%emt 0:00:36]} 1-0

[Event "NOR-ch Clubs 2017"]
[Site "Kristiansund"]
[Date "2017.10.22"]
[Round "6"]
[White "Berg-Jensen, Joachim"]
[Black "Al-Tarbosh, Ward"]
[Result "1/2-1/2"]
[ECO "D02"]
[WhiteElo "2175"]
[BlackElo "2270"]
[Annotator "NA"]
[PlyCount "130"]
[EventDate "2017.??.??"]
[EventType "team-tourn"]
[EventCountry "NOR"]
[SourceTitle "playchess.com"]
[Source "ChessBase"]
[SourceQuality "1"]
[TimeControl "40/5400:1800"]

1. d4 {[%emt 0:00:03]} d5 {[%emt 0:03:57]} 2. Nf3 {[%emt 0:00:18]} Nf6 {[%emt 0:00:26]} 3. g3 {[%emt 0:00:18]} Bf5 {[%emt 0:00:13]} 4. Bg2 {[%emt 0:00:16]} h6 {[%emt 0:00:35]} 5. O-O {[%emt 0:00:18]} Nbd7 {[%emt 0:00:07]} 6. b3 {[%emt 0:00:57]} e6 {[%emt 0:00:20]} 7. c4 {[%emt 0:00:25]} c6 {[%emt 0:00:20]} 8. Bb2 {[%emt 0:00:51]} Be7 {[%emt 0:00:09]} 9. Nc3 {[%emt 0:00:56]} O-O {[%emt 0:00:05]} 10. Ne5 {[%emt 0:08:09]} Bh7 {[%emt 0:38:16] D11: Damengambit (Slawische Verteidigung)} (10... a5 11. Re1 Bh7 12. e3 Nxe5 13. dxe5 Nd7 14. cxd5 cxd5 15. e4 Nxe5 16. Nxd5 exd5 17. Bxe5 Bb4 18. Re3 dxe4 19. Bxe4 Bxe4 20. Rxe4 Qxd1+ 21. Rxd1 {½-½ (38) Antal,G (2524)-Sipos,I (2491) Hungary 2014}) 11. Nxd7 {[%emt 0:05:03]} Qxd7 {[%emt 0:00:12]} 12. c5 $146 {[%emt 0:00:07]} ({Vorgänger:} 12. e3 Rfe8 13. Qe2 Bb4 14. a3 Bf8 15. e4 Qc7 16. e5 Nd7 17. cxd5 cxd5 18. Rac1 {1-0 (38) Rasmussen,C (2314)-Schwarz,F (2258) Denmark 2015}) 12... Ne4 {[%emt 0:01:20]} 13. Nxe4 {[%emt 0:05:20]} Bxe4 {[%emt 0:03:31]} 14. Bxe4 {[%emt 0:11:24]} dxe4 {[%emt 0:00:32]} 15. e3 {[%emt 0:00:07]} Rad8 {[%emt 0:01:21]} 16. b4 {[%emt 0:01:08]} Qd5 {[%emt 0:00:55]} 17. Qe2 {[%emt 0:02:16]} f5 {[%emt 0:00:03]} 18. a4 {[%emt 0:01:23]} g5 {[%emt 0:00:08]} 19. Rfe1 {[%emt 0:09:09]} g4 {[%emt 0:01:08]} 20. b5 {[%emt 0:00:35]} h5 {[%emt 0:00:02]} 21. Bc3 {[%emt 0:02:42]} h4 {[%emt 0:01:23]} 22. Ba5 {[%emt 0:00:58]} Rd7 {[%emt 0:01:23]} 23. Qa2 {[%emt 0:00:29]} hxg3 {[%emt 0:00:12]} 24. hxg3 {[%emt 0:00:17]} e5 {[%emt 0:09:31]} 25. Bc3 {[%emt 0:10:06]} exd4 {[%emt 0:10:18]} 26. Bxd4 {[%emt 0:01:02]} Qxa2 {[%emt 0:00:29]} 27. Rxa2 {[%emt 0:00:03]} Rc8 {[%emt 0:00:04]} 28. b6 {[%emt 0:06:03]} Ra8 {[%emt 0:02:34]} 29. bxa7 {[%emt 0:08:16]} Rxa7 {[%emt 0:00:01]} 30. a5 {[%emt 0:00:09]} Rd5 {[%emt 0:00:26]} 31. Rc1 {[%emt 0:00:24]} Kf7 {[%emt 0:01:04]} 32. Kf1 {[%emt 0:01:57]} Bf6 {[%emt 0:01:53]} 33. Ra4 {[%emt 0:01:30]} Bxd4 {[%emt 0:00:27]} 34. exd4 {[%emt 0:00:02]} Rd8 {[%emt 0:00:46]} 35. Ke2 {[%emt 0:01:15]} Rh8 {[%emt 0:00:19]} 36. Rb1 {[%emt 0:01:06]} Ke6 {[%emt 0:00:14]} 37. Rb6 {[%emt 0:01:33]} Kd5 {[%emt 0:01:30]} 38. Ke3 {[%emt 0:02:18]} Rha8 {[%emt 0:02:21]} 39. Rab4 {[%emt 0:00:19]} Rxa5 {[%emt 0:00:36]} 40. Rxb7 {[%emt 0:00:03]} Ra3+ {[%emt 0:30:10]} 41. Kf4 {[%emt 0:30:19]} Rf3+ {[%emt 0:00:23]} 42. Kg5 {[%emt 0:00:00]} Ke6 {[%emt 0:00:00]} 43. Rg7 $11 {[%emt 0:00:00]} Rd8 {[%emt 0:00:00]} 44. Rg6+ {[%emt 0:00:00]} Kd5 {[%emt 0:00:00]} 45. Kf6 {[%emt 0:00:00]} e3 {[%emt 0:00:00]} 46. fxe3 {[%emt 0:00:00]} Rxe3 {[%emt 0:00:00]} 47. Kxf5 {[%emt 0:00:00]} Rxg3 {[%emt 0:00:00]} 48. Kf4 {[%emt 0:00:00]} Rd3 {[%emt 0:00:00]} 49. Rg5+ {[%emt 0:00:00]} Ke6 {[%emt 0:00:00]} 50. Ke4 {[%emt 0:00:00]} Rd1 {[%emt 0:00:00]} 51. Rg6+ {[%emt 0:00:00]} Kd7 {[%emt 0:00:00]} 52. Rg7+ {[%emt 0:00:00]} Ke6 {[%emt 0:00:00]} 53. Rxg4 {[%emt 0:00:00]} Re1+ {[%emt 0:00:00]} 54. Kd3 {[%emt 0:00:00]} Rd1+ {[%emt 0:00:00]} 55. Kc2 {[%emt 0:00:00]} Rh1 {[%emt 0:00:00]} 56. Re4+ {[%emt 0:00:00]} Kf5 {[%emt 0:00:00]} 57. Re5+ {[%emt 0:00:00]} Kf6 {[%emt 0:00:00]} 58. Re3 {[%emt 0:00:00]} Rh4 {[%emt 0:00:00]} 59. Kc3 {[%emt 0:00:00]} Rh1 {[%emt 0:00:00]} 60. Rb6 {[%emt 0:00:00]} Rc1+ {[%emt 0:00:00]} 61. Kd2 {[%emt 0:00:00]} Rxc5 {[%emt 0:00:00]} 62. Rd3 {[%emt 0:00:00]} Rc4 {[%emt 0:00:00]} 63. d5 {[%emt 0:00:00]} Rd6 {[%emt 0:00:00]} 64. Rxc6 {[%emt 0:00:00]} Rcxc6 {[%emt 0:00:00]} 65. dxc6 {[%emt 0:00:00]} Rxc6 1/2-1/2

[Event "NOR-ch Clubs 2017"]
[Site "Kristiansund"]
[Date "2017.10.22"]
[Round "6"]
[White "Moen, Ole Christian"]
[Black "Laverton, Christian"]
[Result "1-0"]
[ECO "B47"]
[WhiteElo "2174"]
[BlackElo "2113"]
[Annotator "NA"]
[PlyCount "127"]
[EventDate "2017.??.??"]
[EventType "team-tourn"]
[EventCountry "NOR"]
[SourceTitle "playchess.com"]
[Source "ChessBase"]
[SourceQuality "1"]
[TimeControl "40/5400:1800"]

1. e4 {[%emt 0:00:22]} c5 {[%emt 0:01:13]} 2. Nc3 e6 3. Nf3 {[%emt 0:00:12]} Nc6 {[%emt 0:00:17]} 4. d4 {[%emt 0:01:12]} cxd4 {[%emt 0:00:10]} 5. Nxd4 {[%emt 0:00:05]} Qc7 {[%emt 0:06:06]} 6. Ndb5 {[%emt 0:02:14]} Qb8 {[%emt 0:00:05]} 7. a4 {[%emt 0:00:04]} a6 {[%emt 0:03:05]} 8. Na3 {[%emt 0:00:21]} Nf6 {[%emt 0:03:59]} 9. g3 {[%emt 0:02:43]} Bc5 {[%emt 0:05:28]} 10. Nc4 {[%emt 0:01:49]} O-O {[%emt 0:05:28]} 11. Be3 {[%emt 0:02:57]} Bxe3 {[%emt 0:10:36]} 12. Nxe3 {[%emt 0:03:30]} d5 {[%emt 0:06:10]} 13. exd5 {[%emt 0:04:08]} exd5 {[%emt 0:00:44]} 14. Ncxd5 {[%emt 0:00:05]} Nxd5 {[%emt 0:01:25]} 15. Qxd5 {[%emt 0:00:55]} Be6 {[%emt 0:03:06]} 16. Qc5 {[%emt 0:02:09]} Qd8 {[%emt 0:05:51]} 17. Bg2 {[%emt 0:01:18]} Rc8 {[%emt 0:02:05]} 18. c3 {[%emt 0:22:43]} Na5 {[%emt 0:06:26]} 19. Qb4 {[%emt 0:02:58]} Nc4 {[%emt 0:07:53]} 20. O-O {[%emt 0:01:01]} Nxe3 {[%emt 0:02:25]} 21. fxe3 {[%emt 0:00:06]} b5 {[%emt 0:03:15]} 22. Rfd1 {[%emt 0:07:34]} Qg5 {[%emt 0:02:36]} 23. Qf4 {[%emt 0:00:33]} Qc5 {[%emt 0:00:34]} 24. a5 {[%emt 0:00:51]} Bc4 {[%emt 0:01:12]} 25. Rd4 {[%emt 0:00:23]} Rce8 {[%emt 0:01:21]} 26. Rad1 {[%emt 0:02:33]} Re6 {[%emt 0:01:57]} 27. e4 {[%emt 0:05:22]} Bb3 {[%emt 0:00:39]} 28. R1d3 {[%emt 0:05:42]} Re5 {[%emt 0:01:14]} 29. Kh1 {[%emt 0:04:58]} f6 {[%emt 0:01:12]} 30. Rd8 {[%emt 0:01:58]} Rfe8 {[%emt 0:01:46]} 31. Qd2 {[%emt 0:00:31]} Qc7 {[%emt 0:00:30]} 32. h4 {[%emt 0:01:37]} R5e7 {[%emt 0:00:12]} 33. R8d7 {[%emt 0:01:01]} Qe5 {[%emt 0:00:07]} 34. R7d6 {[%emt 0:00:18]} Bc4 {[%emt 0:00:07]} 35. Re3 {[%emt 0:00:23]} Re6 {[%emt 0:00:03]} 36. Rxe6 {[%emt 0:00:18]} Qxe6 {[%emt 0:00:03]} 37. Qd4 {[%emt 0:00:32]} Qe7 {[%emt 0:00:17]} 38. Qb6 {[%emt 0:01:12]} f5 {[%emt 0:00:01]} 39. Kg1 {[%emt 0:02:27]} f4 {[%emt 0:00:07]} 40. gxf4 {[%emt 0:00:02]} Qxh4 {[%emt 0:30:06]} 41. Qc7 {[%emt 0:05:48]} Rd8 {[%emt 0:00:00]} 42. Rh3 {[%emt 0:00:09]} Rd1+ {[%emt 0:00:00]} 43. Kh2 {[%emt 0:00:07]} Qg4 {[%emt 0:00:00]} 44. Qb8+ {[%emt 0:03:06]} Kf7 {[%emt 0:00:00]} 45. Qa7+ {[%emt 0:00:45]} Rd7 {[%emt 0:00:00]} 46. Qf2 {[%emt 0:00:39]} h6 {[%emt 0:00:00]} 47. Qf3 {[%emt 0:01:24]} Qxf3 {[%emt 0:00:00]} 48. Rxf3 {[%emt 0:00:13]} Rd2 {[%emt 0:00:00]} 49. b4 {[%emt 0:00:06]} Bd3 {[%emt 0:00:00]} 50. Re3 {[%emt 0:00:47]} Bf1 {[%emt 0:00:00]} 51. Rg3 {[%emt 0:00:03]} Rc2 {[%emt 0:00:00]} 52. f5 {[%emt 0:00:50]} Bxg2 {[%emt 0:00:00]} 53. Rxg2 {[%emt 0:00:06]} Rxc3 {[%emt 0:00:00]} 54. Rg6 {[%emt 0:00:10]} Rc4 {[%emt 0:00:00]} 55. e5 {[%emt 0:00:47]} Rxb4 {[%emt 0:00:00]} 56. Rxa6 {[%emt 0:00:05]} Ra4 {[%emt 0:00:00]} 57. Ra7+ {[%emt 0:00:13]} Kf8 {[%emt 0:00:00]} 58. a6 {[%emt 0:00:24]} b4 {[%emt 0:00:00]} 59. e6 {[%emt 0:00:03]} b3 {[%emt 0:00:00]} 60. Rf7+ {[%emt 0:00:05]} Kg8 {[%emt 0:00:00]} 61. Rb7 {[%emt 0:00:32]} Rxa6 {[%emt 0:00:00]} 62. Rb8+ {[%emt 0:00:08]} Kh7 {[%emt 0:00:00]} 63. e7 {[%emt 0:00:04]} Ra2+ {[%emt 0:00:00]} 64. Kh3 {[%emt 0:00:09]} 1-0

[Event "NOR-ch Clubs 2017"]
[Site "Kristiansund"]
[Date "2017.10.22"]
[Round "6"]
[White "Kolas, Tore"]
[Black "Mihajlov, Sebastian"]
[Result "0-1"]
[ECO "C96"]
[WhiteElo "2168"]
[BlackElo "2393"]
[Annotator "NA"]
[PlyCount "78"]
[EventDate "2017.??.??"]
[EventType "team-tourn"]
[EventCountry "NOR"]
[SourceTitle "playchess.com"]
[Source "ChessBase"]
[SourceQuality "1"]
[TimeControl "40/5400:1800"]

1. e4 {[%emt 0:00:02]} e5 {[%emt 0:00:37]} 2. Nf3 {[%emt 0:00:10]} Nc6 {[%emt 0:00:03]} 3. Bb5 {[%emt 0:00:30]} a6 {[%emt 0:00:05]} 4. Ba4 {[%emt 0:00:20]} Nf6 {[%emt 0:00:04]} 5. O-O {[%emt 0:00:23]} Be7 {[%emt 0:00:46]} 6. Re1 {[%emt 0:00:49]} b5 {[%emt 0:00:07]} 7. Bb3 {[%emt 0:00:05]} d6 {[%emt 0:00:05]} 8. c3 {[%emt 0:00:20]} O-O {[%emt 0:00:07]} 9. h3 {[%emt 0:00:20]} Na5 {[%emt 0:00:27]} 10. Bc2 {[%emt 0:00:09]} c5 {[%emt 0:00:06]} 11. d4 {[%emt 0:00:06]} Nd7 {[%emt 0:00:03]} 12. Nbd2 {[%emt 0:09:01]} Re8 {[%emt 0:04:15]} 13. d5 {[%emt 0:03:16]} Bf6 {[%emt 0:05:48]} 14. b3 {[%emt 0:06:59]} Nb6 {[%emt 0:00:05]} 15. Nf1 {[%emt 0:01:35]} c4 {[%emt 0:01:49]} 16. b4 {[%emt 0:00:59]} Nb7 {[%emt 0:00:03]} 17. Be3 {[%emt 0:05:35]} a5 {[%emt 0:06:14]} 18. a3 {[%emt 0:00:33]} g6 {[%emt 0:01:05]} 19. Kh2 {[%emt 0:10:35]} Ra6 {[%emt 0:12:17]} 20. g4 {[%emt 0:05:42]} Bd7 {[%emt 0:00:26]} 21. Ng3 {[%emt 0:06:59]} Qe7 {[%emt 0:02:30]} 22. Qe2 {[%emt 0:05:46]} Rea8 {[%emt 0:02:50]} 23. Qf1 {[%emt 0:00:51]} axb4 {[%emt 0:05:17]} 24. axb4 {[%emt 0:01:23]} Na4 {[%emt 0:00:47]} 25. Ra3 {[%emt 0:01:53]} Nb6 {[%emt 0:07:27]} 26. Rxa6 {[%emt 0:00:31]} Rxa6 {[%emt 0:00:02]} 27. Ra1 {[%emt 0:04:28]} Rxa1 {[%emt 0:00:03]} 28. Qxa1 {[%emt 0:00:09]} Nc8 {[%emt 0:00:03]} 29. Kg2 {[%emt 0:11:27]} Nd8 {[%emt 0:01:20]} 30. Qc1 {[%emt 0:03:18]} Bg7 {[%emt 0:00:43]} 31. Bh6 {[%emt 0:01:17]} f6 {[%emt 0:00:25]} 32. Bxg7 {[%emt 0:00:23]} Kxg7 {[%emt 0:00:02]} 33. Qe3 {[%emt 0:00:20]} Nf7 {[%emt 0:00:21]} 34. Nh2 {[%emt 0:01:26]} Qd8 {[%emt 0:01:31]} 35. Nf3 {[%emt 0:01:24]} Ne7 {[%emt 0:00:05]} 36. Qa7 {[%emt 0:00:24]} Ng8 {[%emt 0:00:18]} 37. Qb7 {[%emt 0:00:17]} Qe7 {[%emt 0:00:20]} 38. Nd2 {[%emt 0:00:04]} h5 {[%emt 0:00:04]} 39. gxh5 {[%emt 0:00:04]} Bxh3+ {[%emt 0:00:06]} 0-1

[Event "NOR-ch Clubs 2017"]
[Site "Kristiansund"]
[Date "2017.10.22"]
[Round "6"]
[White "Lund, Terje"]
[Black "Unneland, Arne"]
[Result "1-0"]
[ECO "A40"]
[WhiteElo "2101"]
[BlackElo "1648"]
[Annotator "NA"]
[PlyCount "129"]
[EventDate "2017.??.??"]
[EventType "team-tourn"]
[EventCountry "NOR"]
[SourceTitle "playchess.com"]
[Source "ChessBase"]
[SourceQuality "1"]
[TimeControl "40/5400:1800"]

1. d4 {[%emt 0:00:10]} e6 {[%emt 0:00:33]} 2. c4 {[%emt 0:01:11]} c5 {[%emt 0:00:16]} 3. e3 {[%emt 0:00:32]} Nf6 {[%emt 0:00:15]} 4. Nc3 {[%emt 0:00:25]} d5 {[%emt 0:00:17]} 5. Nf3 {[%emt 0:01:04]} Nc6 {[%emt 0:00:09]} 6. a3 {[%emt 0:03:48]} a6 {[%emt 0:03:30]} 7. dxc5 {[%emt 0:04:52]} Bxc5 {[%emt 0:01:51]} 8. b4 {[%emt 0:00:10]} Ba7 {[%emt 0:08:35]} 9. Be2 {[%emt 0:06:06]} O-O {[%emt 0:01:32]} 10. O-O {[%emt 0:01:16]} dxc4 {[%emt 0:00:14]} 11. Bxc4 {[%emt 0:00:11]} b5 {[%emt 0:00:10]} 12. Bd3 {[%emt 0:01:17]} Bb7 {[%emt 0:00:28]} 13. Bb2 {[%emt 0:00:39]} Ne7 {[%emt 0:01:09]} 14. Qe2 {[%emt 0:05:23]} Ned5 {[%emt 0:05:39]} 15. Nxd5 {[%emt 0:01:33]} Bxd5 {[%emt 0:01:31]} 16. Rfd1 {[%emt 0:03:11]} Qe7 {[%emt 0:00:58]} 17. e4 {[%emt 0:07:12]} Bb7 {[%emt 0:01:28]} 18. Nd4 {[%emt 0:08:20]} Rfd8 {[%emt 0:02:42]} 19. Nb3 {[%emt 0:01:35]} Rac8 {[%emt 0:00:42]} 20. Rac1 {[%emt 0:06:34]} Bb6 {[%emt 0:01:27]} 21. Bb1 {[%emt 0:08:59]} Rxc1 {[%emt 0:22:03]} 22. Rxc1 {[%emt 0:01:19]} h6 {[%emt 0:01:50]} 23. h3 {[%emt 0:03:05]} Ne8 {[%emt 0:02:03]} 24. Nc5 {[%emt 0:04:08]} Nd6 {[%emt 0:01:24]} 25. Nxb7 {[%emt 0:00:36]} Qxb7 {[%emt 0:00:36]} 26. Qg4 {[%emt 0:00:17]} Ne8 {[%emt 0:00:16]} 27. Rd1 {[%emt 0:01:15]} Rxd1+ {[%emt 0:06:26]} 28. Qxd1 {[%emt 0:00:02]} Qc6 {[%emt 0:00:07]} 29. Qd3 {[%emt 0:01:40]} Qd6 {[%emt 0:00:42]} 30. Qxd6 {[%emt 0:02:56]} Nxd6 {[%emt 0:00:02]} 31. Bd3 {[%emt 0:00:46]} f6 {[%emt 0:00:38]} 32. e5 {[%emt 0:00:22]} Ne8 {[%emt 0:06:11]} 33. exf6 {[%emt 0:00:30]} gxf6 {[%emt 0:00:05]} 34. a4 {[%emt 0:03:52]} bxa4 {[%emt 0:02:32]} 35. Bxa6 {[%emt 0:00:22]} Nc7 {[%emt 0:00:06]} 36. Bd3 {[%emt 0:02:07]} Nd5 {[%emt 0:00:37]} 37. Bc2 {[%emt 0:00:35]} Nxb4 {[%emt 0:00:07]} 38. Bxa4 {[%emt 0:00:03]} e5 {[%emt 0:00:19]} 39. Bb5 {[%emt 0:00:25]} Kg7 {[%emt 0:00:39]} 40. Kf1 {[%emt 0:00:23]} Nd5 {[%emt 0:30:48]} 41. Ke2 {[%emt 0:00:53]} Nc7 {[%emt 0:00:00]} 42. Bd7 {[%emt 0:00:24]} Nd5 {[%emt 0:00:00]} 43. Kf3 {[%emt 0:01:01]} Bc5 {[%emt 0:00:00]} 44. Bc1 {[%emt 0:03:12]} Bb6 {[%emt 0:00:00]} 45. Bd2 {[%emt 0:01:44]} Ne7 {[%emt 0:00:00]} 46. Be1 {[%emt 0:03:25]} Ng6 {[%emt 0:00:00]} 47. g3 {[%emt 0:00:23]} Ne7 {[%emt 0:00:00]} 48. Kg4 {[%emt 0:00:23]} Ng6 {[%emt 0:00:00]} 49. Kh5 {[%emt 0:00:29]} Ne7 {[%emt 0:00:00]} 50. Be6 {[%emt 0:01:03]} Ng6 {[%emt 0:00:00]} 51. Bd2 {[%emt 0:00:31]} Ne7 {[%emt 0:00:00]} 52. Bxh6+ {[%emt 0:00:25]} Kh7 {[%emt 0:00:00]} 53. f3 {[%emt 0:00:37]} Bf2 {[%emt 0:00:00]} 54. g4 {[%emt 0:00:20]} Be1 {[%emt 0:00:00]} 55. h4 {[%emt 0:03:41]} Bxh4 {[%emt 0:00:00]} 56. Bf8 {[%emt 0:00:29]} f5 {[%emt 0:00:00]} 57. g5 {[%emt 0:00:32]} Bxg5 {[%emt 0:00:59]} 58. Kxg5 {[%emt 0:00:02]} Nc6 {[%emt 0:01:06]} 59. Bxf5+ {[%emt 0:01:08]} Kg8 {[%emt 0:00:08]} 60. Bd6 {[%emt 0:00:48]} Nd4 {[%emt 0:00:11]} 61. Be4 {[%emt 0:00:33]} Kf7 {[%emt 0:01:17]} 62. Bd5+ {[%emt 0:00:23]} Ke8 {[%emt 0:00:11]} 63. Bxe5 {[%emt 0:00:08]} Ne2 {[%emt 0:00:37]} 64. Kf6 {[%emt 0:00:26]} Nc1 {[%emt 0:00:29]} 65. Bc4 {[%emt 0:00:20]} 1-0

[Event "NOR-ch Clubs 2017"]
[Site "Kristiansund"]
[Date "2017.10.22"]
[Round "6"]
[White "Bentsen, Hakon"]
[Black "Vestby-Ellingsen, Mads"]
[Result "0-1"]
[ECO "C54"]
[WhiteElo "2071"]
[BlackElo "2178"]
[Annotator "NA"]
[PlyCount "194"]
[EventDate "2017.??.??"]
[EventType "team-tourn"]
[EventCountry "NOR"]
[SourceTitle "playchess.com"]
[Source "ChessBase"]
[SourceQuality "1"]
[TimeControl "40/5400:1800"]

1. e4 {[%emt 0:00:04]} e5 {[%emt 0:00:10]} 2. Nf3 {[%emt 0:00:19]} Nc6 {[%emt 0:00:07]} 3. Bc4 {[%emt 0:00:16]} Bc5 {[%emt 0:00:13]} 4. c3 {[%emt 0:00:10]} Nf6 {[%emt 0:00:12]} 5. d4 {[%emt 0:00:38]} exd4 {[%emt 0:00:14]} 6. cxd4 {[%emt 0:00:04]} Bb4+ {[%emt 0:00:18]} 7. Bd2 {[%emt 0:00:06]} Bxd2+ {[%emt 0:00:14]} 8. Nbxd2 {[%emt 0:00:07]} d5 {[%emt 0:00:16]} 9. exd5 {[%emt 0:00:10]} Nxd5 {[%emt 0:00:08]} 10. Qb3 {[%emt 0:00:07]} Nce7 {[%emt 0:00:25]} 11. O-O {[%emt 0:00:16]} O-O {[%emt 0:00:12]} 12. Ne4 {[%emt 0:01:08] C54: Giuoco Piano: 4 c3 Nf6, main lines with 5 d4 and 5 d3} (12. Rfe1 c6 13. Ne4 Nb6 14. Nc5 Nxc4 15. Qxc4 Nd5 16. Ne5 f6 17. Ned3 Qd6 18. Ne4 Qd8 19. Nec5 Qd6 20. Ne4 Qd8 {½-½ (20) Hovhannisyan,R (2612)-Melkumyan,H (2633) Riga 2015}) 12... Nb6 {[%emt 0:10:13]} 13. Rac1 {[%emt 0:06:58]} Nxc4 $146 {[%emt 0:02:31]} ({Predecessor:} 13... Ng6 14. Rfe1 Nxc4 15. Qxc4 c6 16. Re3 Be6 17. Qe2 Nf4 18. Qd2 Nd5 19. Ree1 Re8 {1-0 (40) Bukwa,K-Minczyk,A Sielpa 2004}) 14. Qxc4 {[%emt 0:00:06]} c6 {[%emt 0:01:45]} 15. Nc5 {[%emt 0:07:02]} Qd5 {[%emt 0:03:53]} 16. b3 {[%emt 0:03:15]} Qh5 {[%emt 0:06:59]} 17. Ne4 {[%emt 0:05:48]} Nd5 {[%emt 0:04:50]} 18. Rfe1 {[%emt 0:01:59]} Nf4 {[%emt 0:08:37]} 19. Ng3 {[%emt 0:01:26]} Qh6 {[%emt 0:00:47]} 20. Rc3 {[%emt 0:04:07]} Be6 {[%emt 0:01:31]} 21. Qc5 {[%emt 0:00:14]} Rfd8 {[%emt 0:04:34]} 22. Rce3 {[%emt 0:05:17]} Rd5 {[%emt 0:02:27]} 23. Qe7 {[%emt 0:04:44]} Rd7 {[%emt 0:03:38]} 24. Qc5 {[%emt 0:06:21]} Qf6 {[%emt 0:00:42]} 25. Nf5 {[%emt 0:05:47]} h6 {[%emt 0:06:59]} 26. Ng3 {[%emt 0:06:15]} Rd5 {[%emt 0:01:40]} 27. Qc2 {[%emt 0:00:23]} Rad8 {[%emt 0:01:16]} 28. Qe4 {[%emt 0:03:17]} Ng6 {[%emt 0:03:45]} 29. h3 {[%emt 0:06:55]} h5 {[%emt 0:12:01]} 30. Qc2 {[%emt 0:02:08]} Nh4 {[%emt 0:03:06]} 31. Nxh4 {[%emt 0:01:39]} Qxh4 {[%emt 0:00:07]} 32. Re5 {[%emt 0:00:27]} Qxd4 {[%emt 0:01:14]} 33. Rxh5 {[%emt 0:00:44]} Rxh5 {[%emt 0:00:08]} 34. Nxh5 {[%emt 0:00:05]} Qd2 {[%emt 0:01:31]} 35. Qxd2 {[%emt 0:00:09]} Rxd2 {[%emt 0:00:05]} 36. Nf4 {[%emt 0:00:06]} Rxa2 {[%emt 0:01:32]} 37. Nxe6 {[%emt 0:00:06]} fxe6 {[%emt 0:00:05]} 38. Rxe6 {[%emt 0:00:04]} Ra1+ {[%emt 0:00:12]} 39. Kh2 {[%emt 0:00:05]} Ra3 {[%emt 0:01:02]} 40. Re3 {[%emt 0:00:33]} a5 {[%emt 0:30:10]} 41. Kg3 {[%emt 0:30:08]} a4 {[%emt 0:00:00]} 42. bxa4 {[%emt 0:00:00]} Rxa4 {[%emt 0:00:00]} 43. Re7 {[%emt 0:00:00]} b5 {[%emt 0:00:00]} 44. f4 {[%emt 0:00:00]} c5 {[%emt 0:00:00]} 45. Rc7 {[%emt 0:00:00]} Rc4 $11 {[%emt 0:00:00]} 46. Kg4 {[%emt 0:00:00]} b4 {[%emt 0:00:00]} 47. Rb7 {[%emt 0:00:00]} Rc3 {[%emt 0:00:00]} 48. Kf5 {[%emt 0:00:00]} b3 {[%emt 0:00:00]} 49. Rb8+ {[%emt 0:00:00]} Kf7 {[%emt 0:00:00]} 50. Rb7+ {[%emt 0:00:00]} Ke8 {[%emt 0:00:00]} 51. g4 {[%emt 0:00:00]} c4 {[%emt 0:00:00]} 52. Kg6 {[%emt 0:00:00]} Rc2 {[%emt 0:00:00]} 53. Kxg7 {[%emt 0:00:00]} b2 {[%emt 0:00:00]} 54. f5 {[%emt 0:00:00]} c3 {[%emt 0:00:00]} 55. f6 {[%emt 0:00:00]} Rf2 {[%emt 0:00:00]} 56. g5 {[%emt 0:00:00]} c2 {[%emt 0:00:00]} 57. Rb8+ {[%emt 0:00:00]} Kd7 {[%emt 0:00:00]} 58. Rb7+ {[%emt 0:00:00]} Ke6 {[%emt 0:00:00]} 59. Rb6+ {[%emt 0:00:00]} Ke5 {[%emt 0:00:00]} 60. Rb5+ {[%emt 0:00:00]} Ke4 {[%emt 0:00:00]} 61. Rxb2 {[%emt 0:00:00]} c1=Q {[%emt 0:00:00]} 62. Rxf2 {[%emt 0:00:00]} Qxg5+ {[%emt 0:00:00]} 63. Kf7 {[%emt 0:00:00]} Qe3 {[%emt 0:00:00]} 64. Rb2 {[%emt 0:00:00]} Qxh3 {[%emt 0:00:00]} 65. Rb4+ {[%emt 0:00:00]} Ke5 {[%emt 0:00:00]} 66. Rb5+ {[%emt 0:00:00]} Kd6 {[%emt 0:00:00]} 67. Rb6+ {[%emt 0:00:00]} Kc7 {[%emt 0:00:00]} 68. Re6 {[%emt 0:00:00]} Kd7 {[%emt 0:00:00]} 69. Re7+ {[%emt 0:00:00]} Kd6 {[%emt 0:00:00]} 70. Kg7 {[%emt 0:00:00]} Qg4+ {[%emt 0:00:00]} 71. Kf7 {[%emt 0:00:00]} Qh5+ {[%emt 0:00:00]} 72. Kg7 {[%emt 0:00:00]} Qg5+ {[%emt 0:00:00]} 73. Kf7 {[%emt 0:00:00]} Qh5+ {[%emt 0:00:00]} 74. Kg7 {[%emt 0:00:01]} Qd5 {[%emt 0:00:00]} 75. Kf8 {[%emt 0:05:22]} Qg5 {[%emt 0:00:00]} 76. Kf7 {[%emt 0:00:07]} Qh6 {[%emt 0:00:00]} 77. Re6+ {[%emt 0:00:22]} Kd5 {[%emt 0:00:00]} 78. Re7 {[%emt 0:00:05]} Qh7+ {[%emt 0:00:00]} 79. Kf8 {[%emt 0:00:04]} Qh6+ {[%emt 0:00:00]} 80. Kf7 {[%emt 0:00:01]} Qh8 {[%emt 0:00:00]} 81. Kg6 {[%emt 0:01:13]} Kd6 {[%emt 0:00:00]} 82. Kf7 {[%emt 0:00:10]} Qh7+ {[%emt 0:00:00]} 83. Kf8 {[%emt 0:00:16]} Qg6 {[%emt 0:00:00]} 84. Rf7 {[%emt 0:01:07]} Ke6 {[%emt 0:00:00]} 85. Re7+ {[%emt 0:00:02]} Kd6 {[%emt 0:00:00]} 86. Rf7 {[%emt 0:00:01]} Qh6+ {[%emt 0:00:00]} 87. Kg8 {[%emt 0:00:33]} Ke6 {[%emt 0:00:00]} 88. Re7+ {[%emt 0:00:11]} Kd6 {[%emt 0:00:00]} 89. Rf7 {[%emt 0:00:09]} Qg6+ {[%emt 0:00:00]} 90. Kh8 {[%emt 0:00:19]} Qh5+ {[%emt 0:00:00]} 91. Kg8 {[%emt 0:00:02]} Ke6 {[%emt 0:00:00]} 92. Rf8 {[%emt 0:00:02]} Qg6+ {[%emt 0:00:00]} 93. Kh8 {[%emt 0:00:01]} Qh6+ {[%emt 0:00:00]} 94. Kg8 {[%emt 0:00:00]} Kf5 {[%emt 0:00:03]} 95. Rf7 {[%emt 0:00:03]} Kg6 96. Re7 Qh4 97. Rf7 Qc4 0-1